[Event "Early-Titled-Tuesday-Blitz-November-28-2023"]
[Site "Chess.com"]
[Date "2023.11.28"]
[Round "4"]
[White "ilushka"]
[Black "Agibileg"]
[Result "0-1"]
[WhiteElo "2399"]
[BlackElo "2653"]
[TimeControl "180+1"]
[EndTime "8:38:41 PST"]
[Termination "Agibileg won by resignation"]

1. Nf3 {[%clk 0:03:00.9]} 1... Nf6 {[%clk 0:02:59.4]} 2. g3 {[%clk 0:03:01.3]}
2... g6 {[%clk 0:02:59.6]} 3. b3 {[%clk 0:03:01.8]} 3... Bg7 {[%clk 0:02:59.2]}
4. Bb2 {[%clk 0:03:02]} 4... b6 {[%clk 0:02:59.6]} 5. Bg2 {[%clk 0:03:02.2]}
5... Bb7 {[%clk 0:03:00.2]} 6. c4 {[%clk 0:03:02.6]} 6... O-O {[%clk 0:02:59.4]}
7. O-O {[%clk 0:03:03.2]} 7... c5 {[%clk 0:02:54.5]} 8. d4 {[%clk 0:03:02.9]}
8... cxd4 {[%clk 0:02:52.6]} 9. Qxd4 {[%clk 0:03:03.8]} 9... d5 {[%clk
0:02:47.6]} 10. cxd5 {[%clk 0:02:56.2]} 10... Qxd5 {[%clk 0:02:41.8]} 11. Nc3
{[%clk 0:02:45.6]} 11... Qxd4 {[%clk 0:02:40.7]} 12. Nxd4 {[%clk 0:02:46.5]}
12... Bxg2 {[%clk 0:02:41.6]} 13. Kxg2 {[%clk 0:02:47.3]} 13... Rc8 {[%clk
0:02:34.3]} 14. Rac1 {[%clk 0:02:26.8]} 14... Nbd7 {[%clk 0:02:26.5]} 15. Ncb5
{[%clk 0:02:21.5]} 15... Nc5 {[%clk 0:02:23.7]} 16. b4 {[%clk 0:02:17.3]} 16...
Na4 {[%clk 0:02:23.4]} 17. Ba1 {[%clk 0:02:13]} 17... a6 {[%clk 0:02:21]} 18.
Na3 {[%clk 0:00:54.3]} 18... Nd5 {[%clk 0:02:05.2]} 19. Nc6 {[%clk 0:00:50.1]}
19... Bxa1 {[%clk 0:02:03.9]} 20. e4 {[%clk 0:00:48.5]} 20... Bb2 {[%clk
0:01:37.3]} 21. exd5 {[%clk 0:00:38.5]} 21... Bxc1 {[%clk 0:01:37.5]} 22. Rxc1
{[%clk 0:00:21.3]} 22... Kf8 {[%clk 0:01:37.4]} 23. Nc4 {[%clk 0:00:21.3]} 23...
Rc7 {[%clk 0:01:32.1]} 24. N4e5 {[%clk 0:00:18.5]} 24... f6 {[%clk 0:01:21.3]}
25. Nd3 {[%clk 0:00:18.5]} 25... Rac8 {[%clk 0:01:18.3]} 26. Nf4 {[%clk
0:00:17.7]} 26... Kf7 {[%clk 0:01:07.8]} 27. Ne6 {[%clk 0:00:17.3]} 27... Rd7
{[%clk 0:01:06.7]} 28. Ne5+ {[%clk 0:00:14.9]} 28... fxe5 {[%clk 0:01:06.8]} 29.
Rxc8 {[%clk 0:00:15.3]} 29... Rxd5 {[%clk 0:01:07.6]} 30. Ng5+ {[%clk
0:00:10.7]} 30... Kg7 {[%clk 0:01:07.7]} 31. Rc7 {[%clk 0:00:07.8]} 31... h6
{[%clk 0:01:06.1]} 32. Ne4 {[%clk 0:00:02.5]} 32... Kf7 {[%clk 0:01:03.4]} 33.
Kf3 {[%clk 0:00:02.2]} 33... Rd4 {[%clk 0:01:02.7]} 34. a3 {[%clk 0:00:01.4]}
34... Rd3+ {[%clk 0:01:02]} 35. Ke2 {[%clk 0:00:02.1]} 35... Rxa3 {[%clk
0:01:01.9]} 36. Nd6+ {[%clk 0:00:02.3]} 36... Ke6 {[%clk 0:01:01.9]} 37. Nc4
{[%clk 0:00:02.7]} 37... Rc3 {[%clk 0:01:01.3]} 38. Rc6+ {[%clk 0:00:01.4]}
38... Kd5 {[%clk 0:01:01]} 39. Nxe5 {[%clk 0:00:01.7]} 39... Rxc6 {[%clk
0:01:00.6]} 40. Nxc6 {[%clk 0:00:01.9]} 40... Kxc6 {[%clk 0:01:01.5]} 0-1

[Event "Early-Titled-Tuesday-Blitz-November-28-2023"]
[Site "Chess.com"]
[Date "2023.11.28"]
[Round "4"]
[White "JSPrepz"]
[Black "GMBenjaminBok"]
[Result "0-1"]
[WhiteElo "2831"]
[BlackElo "3035"]
[TimeControl "180+1"]
[EndTime "8:38:43 PST"]
[Termination "GMBenjaminBok won by checkmate"]

1. e4 {[%clk 0:02:57.4]} 1... c5 {[%clk 0:03:00]} 2. Nf3 {[%clk 0:02:56.7]} 2...
d6 {[%clk 0:03:00.4]} 3. c3 {[%clk 0:02:54.8]} 3... Nf6 {[%clk 0:03:00.6]} 4.
Qc2 {[%clk 0:02:53.9]} 4... Qc7 {[%clk 0:02:56]} 5. Na3 {[%clk 0:02:52.7]} 5...
a6 {[%clk 0:02:53.1]} 6. h3 {[%clk 0:02:52.3]} 6... g6 {[%clk 0:02:50.5]} 7. Be2
{[%clk 0:02:52.6]} 7... Bg7 {[%clk 0:02:50.6]} 8. O-O {[%clk 0:02:53.3]} 8...
O-O {[%clk 0:02:50.8]} 9. Re1 {[%clk 0:02:53.6]} 9... b5 {[%clk 0:02:44.1]} 10.
d3 {[%clk 0:02:52.8]} 10... Bb7 {[%clk 0:02:43.6]} 11. Bg5 {[%clk 0:02:53.1]}
11... Nbd7 {[%clk 0:02:39.9]} 12. Qd2 {[%clk 0:02:53.3]} 12... Rfe8 {[%clk
0:02:38.1]} 13. Bf1 {[%clk 0:02:53.5]} 13... e5 {[%clk 0:02:37]} 14. Bh6 {[%clk
0:02:53.6]} 14... d5 {[%clk 0:02:35.4]} 15. Bxg7 {[%clk 0:02:52.4]} 15... Kxg7
{[%clk 0:02:36.3]} 16. exd5 {[%clk 0:02:22.6]} 16... Nxd5 {[%clk 0:02:34.9]} 17.
Ng5 {[%clk 0:02:14.7]} 17... Rad8 {[%clk 0:02:10.9]} 18. Rad1 {[%clk 0:02:13.7]}
18... Nf4 {[%clk 0:01:43.9]} 19. g3 {[%clk 0:02:09.9]} 19... Qc6 {[%clk
0:01:41.9]} 20. f3 {[%clk 0:01:47.1]} 20... Nh5 {[%clk 0:01:41.1]} 21. Qf2
{[%clk 0:01:42.7]} 21... f5 {[%clk 0:01:31.3]} 22. d4 {[%clk 0:01:36.8]} 22...
cxd4 {[%clk 0:00:57.8]} 23. cxd4 {[%clk 0:01:37.7]} 23... Qf6 {[%clk 0:00:52.9]}
24. h4 {[%clk 0:01:08.9]} 24... h6 {[%clk 0:00:51.8]} 25. Nh3 {[%clk 0:00:57.2]}
25... exd4 {[%clk 0:00:47.6]} 26. Rxe8 {[%clk 0:00:55]} 26... Rxe8 {[%clk
0:00:48.5]} 27. Rxd4 {[%clk 0:00:53.4]} 27... Ne5 {[%clk 0:00:48.6]} 28. Be2
{[%clk 0:00:41.4]} 28... Nxg3 {[%clk 0:00:48.8]} 29. Bd1 {[%clk 0:00:27.9]}
29... Bxf3 {[%clk 0:00:18.9]} 30. Qxg3 {[%clk 0:00:18.2]} 30... Qb6 {[%clk
0:00:17.4]} 31. Qf2 {[%clk 0:00:18.6]} 31... Ng4 {[%clk 0:00:13.3]} 32. Rd7+
{[%clk 0:00:18.3]} 32... Kf8 {[%clk 0:00:12.5]} 33. Qxb6 {[%clk 0:00:19]} 33...
Re1# {[%clk 0:00:12.2]} 0-1

[Event "Early-Titled-Tuesday-Blitz-November-28-2023"]
[Site "Chess.com"]
[Date "2023.11.28"]
[Round "4"]
[White "djokovic74"]
[Black "FunnyDuck66"]
[Result "0-1"]
[WhiteElo "2687"]
[BlackElo "2534"]
[TimeControl "180+1"]
[EndTime "8:38:43 PST"]
[Termination "FunnyDuck66 won by resignation"]

1. e4 {[%clk 0:03:00.9]} 1... c6 {[%clk 0:03:00.4]} 2. Nf3 {[%clk 0:03:00.3]}
2... d5 {[%clk 0:03:00.3]} 3. Nc3 {[%clk 0:03:00.7]} 3... dxe4 {[%clk
0:03:00.6]} 4. Nxe4 {[%clk 0:03:01.4]} 4... Nf6 {[%clk 0:03:01.5]} 5. Qe2 {[%clk
0:03:01.5]} 5... Nxe4 {[%clk 0:03:02]} 6. Qxe4 {[%clk 0:03:01.9]} 6... Be6
{[%clk 0:03:02.7]} 7. b3 {[%clk 0:02:52.4]} 7... Nd7 {[%clk 0:03:01.1]} 8. Bb2
{[%clk 0:02:51.5]} 8... Nf6 {[%clk 0:03:01.2]} 9. Qh4 {[%clk 0:02:42.3]} 9...
Bf5 {[%clk 0:02:58.9]} 10. O-O-O {[%clk 0:02:21]} 10... e6 {[%clk 0:02:57]} 11.
Qd4 {[%clk 0:02:17.2]} 11... Qc7 {[%clk 0:02:49.2]} 12. h3 {[%clk 0:02:12.2]}
12... Rd8 {[%clk 0:02:37.7]} 13. Qe5 {[%clk 0:02:07.6]} 13... Bd6 {[%clk
0:02:36.8]} 14. Qe1 {[%clk 0:02:06.6]} 14... Qa5 {[%clk 0:02:32.6]} 15. Kb1
{[%clk 0:02:00.1]} 15... O-O {[%clk 0:02:24.1]} 16. g4 {[%clk 0:01:53]} 16...
Bg6 {[%clk 0:02:17.5]} 17. Bg2 {[%clk 0:01:44.7]} 17... Nd5 {[%clk 0:02:15.8]}
18. a4 {[%clk 0:00:52.8]} 18... Nf4 {[%clk 0:02:07.8]} 19. Rg1 {[%clk
0:00:40.2]} 19... b5 {[%clk 0:02:01.8]} 20. d3 {[%clk 0:00:39.4]} 20... Qxe1
{[%clk 0:01:55.3]} 21. Rdxe1 {[%clk 0:00:38.9]} 21... bxa4 {[%clk 0:01:55.4]}
22. bxa4 {[%clk 0:00:39.1]} 22... Rb8 {[%clk 0:01:55.6]} 23. Ka2 {[%clk
0:00:39.3]} 23... Rb4 {[%clk 0:01:54.1]} 24. Nd4 {[%clk 0:00:30.2]} 24... Rxa4+
{[%clk 0:01:35.9]} 25. Kb1 {[%clk 0:00:30.6]} 25... Rb8 {[%clk 0:01:30.6]} 26.
Nb3 {[%clk 0:00:28.6]} 26... Nxd3 {[%clk 0:01:25.4]} 27. Rd1 {[%clk 0:00:25]}
27... Nxb2 {[%clk 0:01:19.7]} 28. Kxb2 {[%clk 0:00:25.6]} 28... Be5+ {[%clk
0:01:20.1]} 29. c3 {[%clk 0:00:24.2]} 29... Rc4 {[%clk 0:01:07.7]} 30. Rc1
{[%clk 0:00:16.4]} 30... Rcb4 {[%clk 0:01:07.3]} 31. f4 {[%clk 0:00:11.8]} 31...
Rxb3+ {[%clk 0:01:07]} 32. Ka2 {[%clk 0:00:12.4]} 32... Bxc3 {[%clk 0:01:04.7]}
33. Bxc6 {[%clk 0:00:08.1]} 33... Rb2+ {[%clk 0:01:03.2]} 34. Ka3 {[%clk
0:00:08]} 34... Bd4 {[%clk 0:00:52.1]} 35. Ba4 {[%clk 0:00:04.8]} 35... Bxg1
{[%clk 0:00:51]} 0-1

[Event "Early-Titled-Tuesday-Blitz-November-28-2023"]
[Site "Chess.com"]
[Date "2023.11.28"]
[Round "4"]
[White "Arimin1329"]
[Black "Mystery2007"]
[Result "1-0"]
[WhiteElo "2385"]
[BlackElo "2553"]
[TimeControl "180+1"]
[EndTime "8:38:43 PST"]
[Termination "Arimin1329 won by checkmate"]

1. Nf3 {[%clk 0:02:59.5]} 1... b6 {[%clk 0:02:57.3]} 2. b4 {[%clk 0:02:56.4]}
2... Bb7 {[%clk 0:02:58.2]} 3. Bb2 {[%clk 0:02:56.3]} 3... Nf6 {[%clk
0:02:58.4]} 4. g3 {[%clk 0:02:54.9]} 4... d6 {[%clk 0:02:55.8]} 5. Bg2 {[%clk
0:02:54.4]} 5... e5 {[%clk 0:02:54]} 6. O-O {[%clk 0:02:54.7]} 6... Nbd7 {[%clk
0:02:54.1]} 7. c4 {[%clk 0:02:52.8]} 7... a5 {[%clk 0:02:54.1]} 8. a3 {[%clk
0:02:52.5]} 8... g6 {[%clk 0:02:52.6]} 9. Nc3 {[%clk 0:02:44.7]} 9... Bg7 {[%clk
0:02:52.9]} 10. e3 {[%clk 0:02:44.9]} 10... O-O {[%clk 0:02:50]} 11. d4 {[%clk
0:02:45.4]} 11... e4 {[%clk 0:02:37.9]} 12. Nd2 {[%clk 0:02:44.3]} 12... Re8
{[%clk 0:02:38.5]} 13. d5 {[%clk 0:02:40]} 13... Qe7 {[%clk 0:02:23.4]} 14. Qc2
{[%clk 0:02:37.1]} 14... h5 {[%clk 0:01:54.1]} 15. Ncxe4 {[%clk 0:02:24.8]}
15... Nxe4 {[%clk 0:01:49.9]} 16. Nxe4 {[%clk 0:02:23.4]} 16... Bxb2 {[%clk
0:01:41.5]} 17. Qxb2 {[%clk 0:02:24.3]} 17... Ne5 {[%clk 0:01:41.3]} 18. f4
{[%clk 0:02:01.1]} 18... Ng4 {[%clk 0:01:11.4]} 19. h3 {[%clk 0:01:59]} 19...
Nxe3 {[%clk 0:01:00.8]} 20. Nf6+ {[%clk 0:01:58]} 20... Kf8 {[%clk 0:01:00.3]}
21. Nxe8 {[%clk 0:01:58.3]} 21... Kxe8 {[%clk 0:00:48.1]} 22. Rfe1 {[%clk
0:01:44.3]} 22... axb4 {[%clk 0:00:47.9]} 23. Qf2 {[%clk 0:01:33.9]} 23... Rxa3
{[%clk 0:00:17.2]} 24. Rxa3 {[%clk 0:01:32.4]} 24... bxa3 {[%clk 0:00:16.4]} 25.
Qxe3 {[%clk 0:01:32]} 25... Qxe3+ {[%clk 0:00:13.2]} 26. Rxe3+ {[%clk
0:01:32.9]} 26... Kd7 {[%clk 0:00:13.7]} 27. Rxa3 {[%clk 0:01:32.7]} 27... f6
{[%clk 0:00:12.9]} 28. Be4 {[%clk 0:01:32]} 28... f5 {[%clk 0:00:12.8]} 29. Bc2
{[%clk 0:01:32.3]} 29... Kd8 {[%clk 0:00:10.5]} 30. Ba4 {[%clk 0:01:32.7]} 30...
Kc8 {[%clk 0:00:10.1]} 31. Bb5 {[%clk 0:01:32]} 31... Kb8 {[%clk 0:00:11]} 32.
Re3 {[%clk 0:01:30.5]} 32... Ka7 {[%clk 0:00:10.2]} 33. Re7 {[%clk 0:01:30.7]}
33... Kb8 {[%clk 0:00:09.8]} 34. Rg7 {[%clk 0:01:30.1]} 34... h4 {[%clk
0:00:06.2]} 35. Rxg6 {[%clk 0:01:29.5]} 35... Bc8 {[%clk 0:00:06]} 36. Rg8
{[%clk 0:01:28.9]} 36... Kb7 {[%clk 0:00:02.3]} 37. Ba6+ {[%clk 0:01:29.2]}
37... Kxa6 {[%clk 0:00:02.2]} 38. Rxc8 {[%clk 0:01:30.1]} 38... Kb7 {[%clk
0:00:02]} 39. Rf8 {[%clk 0:01:29.3]} 39... hxg3 {[%clk 0:00:02.9]} 40. Rxf5
{[%clk 0:01:29.4]} 40... g2 {[%clk 0:00:03]} 41. h4 {[%clk 0:01:29.7]} 41... b5
{[%clk 0:00:02.8]} 42. cxb5 {[%clk 0:01:29.6]} 42... Kb6 {[%clk 0:00:03.3]} 43.
h5 {[%clk 0:01:30.1]} 43... Kxb5 {[%clk 0:00:03]} 44. h6 {[%clk 0:01:30.6]}
44... c5 {[%clk 0:00:03.5]} 45. h7 {[%clk 0:01:31.5]} 45... c4 {[%clk
0:00:03.4]} 46. h8=Q {[%clk 0:01:31.4]} 46... Kb4 {[%clk 0:00:03.2]} 47. Qb2+
{[%clk 0:01:29.1]} 47... Kc5 {[%clk 0:00:03.1]} 48. Rf8 {[%clk 0:01:27.2]} 48...
Kxd5 {[%clk 0:00:02.9]} 49. Rc8 {[%clk 0:01:26.8]} 49... c3 {[%clk 0:00:01.2]}
50. Qxc3 {[%clk 0:01:25]} 50... Ke4 {[%clk 0:00:02.1]} 51. Re8+ {[%clk
0:01:22.8]} 51... Kxf4 {[%clk 0:00:02.3]} 52. Qe3+ {[%clk 0:01:22.1]} 52... Kf5
{[%clk 0:00:02.5]} 53. Qf3+ {[%clk 0:01:21.6]} 53... Kg6 {[%clk 0:00:02.4]} 54.
Rg8+ {[%clk 0:01:22.1]} 54... Kh7 {[%clk 0:00:03]} 55. Rxg2 {[%clk 0:01:22]}
55... d5 {[%clk 0:00:02.6]} 56. Qh3# {[%clk 0:01:22.9]} 1-0

[Event "Early-Titled-Tuesday-Blitz-November-28-2023"]
[Site "Chess.com"]
[Date "2023.11.28"]
[Round "4"]
[White "Andrii_Prydun"]
[Black "jk13"]
[Result "0-1"]
[WhiteElo "2387"]
[BlackElo "2621"]
[TimeControl "180+1"]
[EndTime "8:38:46 PST"]
[Termination "jk13 won on time"]

1. e4 {[%clk 0:03:00.9]} 1... c5 {[%clk 0:02:58.2]} 2. d4 {[%clk 0:03:00.8]}
2... cxd4 {[%clk 0:02:57.9]} 3. c3 {[%clk 0:03:01]} 3... Nf6 {[%clk 0:02:58.5]}
4. e5 {[%clk 0:03:01]} 4... Nd5 {[%clk 0:02:58]} 5. Nf3 {[%clk 0:03:01.5]} 5...
e6 {[%clk 0:02:57.6]} 6. cxd4 {[%clk 0:03:00.1]} 6... d6 {[%clk 0:02:58.1]} 7.
a3 {[%clk 0:02:20.8]} 7... Bd7 {[%clk 0:02:57.6]} 8. Bd3 {[%clk 0:02:19.7]} 8...
Bc6 {[%clk 0:02:57.7]} 9. O-O {[%clk 0:02:14.5]} 9... Nd7 {[%clk 0:02:55.6]} 10.
Re1 {[%clk 0:02:10.7]} 10... dxe5 {[%clk 0:02:46.4]} 11. dxe5 {[%clk 0:02:05]}
11... g6 {[%clk 0:02:39.5]} 12. Nbd2 {[%clk 0:01:57.4]} 12... Bg7 {[%clk
0:02:35.3]} 13. Nc4 {[%clk 0:01:31]} 13... O-O {[%clk 0:02:33.7]} 14. Bg5 {[%clk
0:01:26.6]} 14... Qb8 {[%clk 0:02:30.5]} 15. Qe2 {[%clk 0:01:22.2]} 15... a5
{[%clk 0:02:22.4]} 16. h4 {[%clk 0:01:14.7]} 16... b5 {[%clk 0:02:09.4]} 17.
Ncd2 {[%clk 0:01:07.6]} 17... h6 {[%clk 0:02:07.1]} 18. h5 {[%clk 0:01:01.8]}
18... hxg5 {[%clk 0:01:53.5]} 19. hxg6 {[%clk 0:01:00.5]} 19... Nf4 {[%clk
0:01:51.5]} 20. Qe3 {[%clk 0:00:59.3]} 20... Nxd3 {[%clk 0:01:40.1]} 21. Nxg5
{[%clk 0:00:52.5]} 21... N3xe5 {[%clk 0:00:43.1]} 22. Qh3 {[%clk 0:00:50.6]}
22... Nf6 {[%clk 0:00:37.4]} 23. Re4 {[%clk 0:00:06.3]} 23... Nxg6 {[%clk
0:00:32.6]} 24. Rc1 {[%clk 0:00:05.6]} 24... Rc8 {[%clk 0:00:23.6]} 25. Rxe6
{[%clk 0:00:05.3]} 25... Bd7 {[%clk 0:00:21.8]} 26. Rce1 {[%clk 0:00:03.4]}
26... Ra6 {[%clk 0:00:18]} 27. Re8+ {[%clk 0:00:02.1]} 27... Rxe8 {[%clk
0:00:17.6]} 0-1

[Event "Early-Titled-Tuesday-Blitz-November-28-2023"]
[Site "Chess.com"]
[Date "2023.11.28"]
[Round "4"]
[White "viktorgen2021"]
[Black "Pasmendjambvirgulptipon98"]
[Result "1-0"]
[WhiteElo "2473"]
[BlackElo "2192"]
[TimeControl "180+1"]
[EndTime "8:38:47 PST"]
[Termination "viktorgen2021 won on time"]

1. Nf3 {[%clk 0:02:56.4]} 1... Nf6 {[%clk 0:02:58.7]} 2. c4 {[%clk 0:02:55.6]}
2... e6 {[%clk 0:02:57.5]} 3. g3 {[%clk 0:02:54.2]} 3... d5 {[%clk 0:02:57.4]}
4. Bg2 {[%clk 0:02:54.6]} 4... dxc4 {[%clk 0:02:56.6]} 5. O-O {[%clk 0:02:31.6]}
5... a6 {[%clk 0:02:55.6]} 6. a4 {[%clk 0:02:23.6]} 6... Nbd7 {[%clk 0:02:54.3]}
7. Na3 {[%clk 0:02:13.3]} 7... Be7 {[%clk 0:02:23.2]} 8. Nxc4 {[%clk 0:02:10.8]}
8... Rb8 {[%clk 0:02:21.7]} 9. a5 {[%clk 0:02:08]} 9... O-O {[%clk 0:02:13.7]}
10. d3 {[%clk 0:02:04.4]} 10... b5 {[%clk 0:02:10.6]} 11. axb6 {[%clk
0:02:00.1]} 11... cxb6 {[%clk 0:02:08]} 12. Nfe5 {[%clk 0:01:54.1]} 12... b5
{[%clk 0:02:01.6]} 13. Nc6 {[%clk 0:01:52.1]} 13... Qc7 {[%clk 0:01:57]} 14. Bf4
{[%clk 0:01:50.6]} 14... e5 {[%clk 0:01:54.6]} 15. Nxe7+ {[%clk 0:01:25.7]}
15... Kh8 {[%clk 0:01:53.9]} 16. Nxe5 {[%clk 0:01:26.3]} 16... Nxe5 {[%clk
0:01:53]} 17. Nc6 {[%clk 0:01:26]} 17... Nfd7 {[%clk 0:00:55]} 18. d4 {[%clk
0:01:19.9]} 18... g5 {[%clk 0:00:49.2]} 19. Bxe5+ {[%clk 0:01:14]} 19... Nxe5
{[%clk 0:00:47.9]} 20. Nxb8 {[%clk 0:01:09.3]} 20... Nc4 {[%clk 0:00:40.6]} 21.
Nxa6 {[%clk 0:01:07.5]} 21... Qd6 {[%clk 0:00:36.5]} 22. Nc5 {[%clk 0:00:59]}
22... Nxb2 {[%clk 0:00:36.4]} 23. Qd2 {[%clk 0:00:55.9]} 23... Nc4 {[%clk
0:00:35.3]} 24. Qxg5 {[%clk 0:00:55.3]} 24... Qxd4 {[%clk 0:00:35.6]} 25. Rfd1
{[%clk 0:00:51.2]} 25... Qb2 {[%clk 0:00:25.3]} 26. Bf3 {[%clk 0:00:47.1]} 26...
f6 {[%clk 0:00:16.9]} 27. Qh6 {[%clk 0:00:43.2]} 27... Rg8 {[%clk 0:00:15.1]}
28. Ra7 {[%clk 0:00:42.2]} 28... Bf5 {[%clk 0:00:13.7]} 29. Rd8 {[%clk
0:00:23.6]} 29... Qb1+ {[%clk 0:00:06.7]} 30. Kg2 {[%clk 0:00:23.2]} 1-0

[Event "Early-Titled-Tuesday-Blitz-November-28-2023"]
[Site "Chess.com"]
[Date "2023.11.28"]
[Round "4"]
[White "FMStan15"]
[Black "crazy_m_attack"]
[Result "0-1"]
[WhiteElo "2057"]
[BlackElo "2451"]
[TimeControl "180+1"]
[EndTime "8:38:48 PST"]
[Termination "crazy_m_attack won on time"]

1. e4 {[%clk 0:02:59.5]} 1... e5 {[%clk 0:02:59]} 2. Nf3 {[%clk 0:02:58.2]} 2...
Nc6 {[%clk 0:02:59.2]} 3. Bb5 {[%clk 0:02:55.9]} 3... a6 {[%clk 0:02:59.5]} 4.
Bxc6 {[%clk 0:02:50.2]} 4... dxc6 {[%clk 0:03:00.4]} 5. O-O {[%clk 0:02:50.3]}
5... Qf6 {[%clk 0:03:00.1]} 6. d3 {[%clk 0:02:45.8]} 6... Ne7 {[%clk 0:02:56.9]}
7. Be3 {[%clk 0:02:45.2]} 7... Bg4 {[%clk 0:02:54.8]} 8. Nbd2 {[%clk 0:02:44.2]}
8... Ng6 {[%clk 0:02:52.7]} 9. Re1 {[%clk 0:02:42.6]} 9... h6 {[%clk 0:02:50.4]}
10. h3 {[%clk 0:02:42.8]} 10... Be6 {[%clk 0:02:44.4]} 11. d4 {[%clk 0:02:40.1]}
11... Bd6 {[%clk 0:02:40]} 12. dxe5 {[%clk 0:02:34.8]} 12... Nxe5 {[%clk
0:02:40.9]} 13. Nxe5 {[%clk 0:02:34.9]} 13... Bxe5 {[%clk 0:02:40.3]} 14. c3
{[%clk 0:02:31.4]} 14... O-O-O {[%clk 0:02:38.8]} 15. Qc2 {[%clk 0:02:11.7]}
15... Qg6 {[%clk 0:02:35.8]} 16. Kh1 {[%clk 0:02:06.7]} 16... Bd6 {[%clk
0:02:21.3]} 17. Nf3 {[%clk 0:02:02]} 17... Bd5 {[%clk 0:02:12.5]} 18. Bd4 {[%clk
0:01:46.4]} 18... Rhe8 {[%clk 0:02:06.4]} 19. Nd2 {[%clk 0:01:34.5]} 19... Bf4
{[%clk 0:01:48]} 20. f3 {[%clk 0:01:24.1]} 20... Be6 {[%clk 0:00:57.9]} 21. Rad1
{[%clk 0:01:06.9]} 21... Qh5 {[%clk 0:00:36.7]} 22. Nf1 {[%clk 0:00:56.9]} 22...
g6 {[%clk 0:00:28.9]} 23. Be3 {[%clk 0:00:49.3]} 23... Bd6 {[%clk 0:00:21.8]}
24. f4 {[%clk 0:00:33.8]} 24... g5 {[%clk 0:00:11.6]} 0-1

[Event "Early-Titled-Tuesday-Blitz-November-28-2023"]
[Site "Chess.com"]
[Date "2023.11.28"]
[Round "4"]
[White "Hikaru"]
[Black "Volodar_Murzin"]
[Result "1-0"]
[WhiteElo "3225"]
[BlackElo "2897"]
[TimeControl "180+1"]
[EndTime "8:38:50 PST"]
[Termination "Hikaru won by resignation"]

1. g3 {[%clk 0:03:00.9]} 1... c5 {[%clk 0:02:58.6]} 2. c4 {[%clk 0:02:59]} 2...
Nc6 {[%clk 0:02:59.5]} 3. Bg2 {[%clk 0:02:59.2]} 3... Nf6 {[%clk 0:02:58.8]} 4.
e3 {[%clk 0:02:59.7]} 4... g6 {[%clk 0:02:58.2]} 5. Nc3 {[%clk 0:02:59.3]} 5...
Bg7 {[%clk 0:02:58.9]} 6. d4 {[%clk 0:02:59.3]} 6... cxd4 {[%clk 0:02:59.8]} 7.
exd4 {[%clk 0:02:59.7]} 7... O-O {[%clk 0:02:57.9]} 8. Nge2 {[%clk 0:02:56.5]}
8... e5 {[%clk 0:02:43.1]} 9. dxe5 {[%clk 0:02:45.5]} 9... Nxe5 {[%clk
0:02:43.1]} 10. b3 {[%clk 0:02:45.9]} 10... d5 {[%clk 0:02:37.2]} 11. cxd5
{[%clk 0:02:46.8]} 11... Bg4 {[%clk 0:02:32.5]} 12. h3 {[%clk 0:02:32.9]} 12...
Bf3 {[%clk 0:01:21]} 13. O-O {[%clk 0:02:31.6]} 13... Re8 {[%clk 0:01:14.3]} 14.
Be3 {[%clk 0:02:26.2]} 14... Rc8 {[%clk 0:01:11.4]} 15. Rc1 {[%clk 0:02:24.6]}
15... Qd7 {[%clk 0:01:01.6]} 16. Bxf3 {[%clk 0:02:20]} 16... Nxf3+ {[%clk
0:01:01.6]} 17. Kg2 {[%clk 0:02:20.7]} 17... Qf5 {[%clk 0:00:28.9]} 18. Nf4
{[%clk 0:01:39.7]} 18... Ng5 {[%clk 0:00:26.9]} 19. Qd3 {[%clk 0:01:39.6]} 19...
Qxd3 {[%clk 0:00:14]} 20. Nxd3 {[%clk 0:01:40.5]} 20... Nge4 {[%clk 0:00:12.9]}
21. Nxe4 {[%clk 0:01:38.5]} 21... Nxe4 {[%clk 0:00:13.8]} 22. Bxa7 {[%clk
0:01:33.1]} 22... Ra8 {[%clk 0:00:13.7]} 23. Bb6 {[%clk 0:01:31.5]} 23... Rxa2
{[%clk 0:00:14.2]} 24. Rfe1 {[%clk 0:01:31.5]} 24... Bf8 {[%clk 0:00:11.9]} 25.
Ra1 {[%clk 0:01:09.6]} 25... Rd2 {[%clk 0:00:09.2]} 26. Nf4 {[%clk 0:00:57]}
26... f5 {[%clk 0:00:09.2]} 27. Be3 {[%clk 0:00:54]} 27... Rb2 {[%clk
0:00:09.1]} 28. Rab1 {[%clk 0:00:53.9]} 28... Rxb1 {[%clk 0:00:09]} 29. Rxb1
{[%clk 0:00:54.8]} 29... Bd6 {[%clk 0:00:09.6]} 30. Rc1 {[%clk 0:00:50.6]} 30...
Nf6 {[%clk 0:00:10]} 31. Rd1 {[%clk 0:00:49.3]} 31... Kf7 {[%clk 0:00:10.7]} 32.
Ne6 {[%clk 0:00:49.1]} 32... Rc8 {[%clk 0:00:09.3]} 33. Ng5+ {[%clk 0:00:34.5]}
33... Ke7 {[%clk 0:00:06.1]} 34. Bd4 {[%clk 0:00:35.1]} 34... Nxd5 {[%clk
0:00:06.3]} 35. Nxh7 {[%clk 0:00:35.4]} 35... Rc2 {[%clk 0:00:05.8]} 36. Ng5
{[%clk 0:00:34.6]} 36... Be5 {[%clk 0:00:05]} 37. Re1 {[%clk 0:00:33.9]} 37...
Kd6 {[%clk 0:00:03.5]} 38. Nf7+ {[%clk 0:00:33.6]} 1-0